{"text_format":"1","workbook":"xlsx","n_sheets":17,"sheets":["FrontCover","Contents","The CoP","Commentary page","Definitions","Legal Definitions","Number of Searches","Search Reason","Overall search outcomes","Receipts","Search Different to Outcome","Items Found - Drugs","Items Found - Weapons","Items Found - Other","Searches by Ethnicity ","Searches By Age and Gender","S60 Auths"],"not_rendered":{"charts":0,"images":1,"macros":1,"external_links":0,"defined_names":18,"comments":0,"pivot_tables":0},"unopened":[],"bounds":{"document_bytes":16777216,"sheet_cells":100000,"rows_first":2000,"rows_last":500,"rows_between":2000,"halvings":0,"cell_chars":16384,"cell_head_chars":4096},"cells_cut":0,"cells_raw":0,"read":"whole","date_system":"1900"}

{"sheet":"FrontCover","index":0,"n_rows":36,"n_cols":1,"rows_kept":36,"cut":false,"hidden":false,"merged":[]}
[]
["PLEASE REPLACE THIS PAGE WITH THE STANDARD MI COVER"]
[]
[]
[]
[]
[]
[]
[]
[]
[]
[]
[]
[]
[]
["Management Information"]
[]
["National Stop and Search"]
["Database: Quarterly Report"]
[]
[]
["OFFICIAL"]
["THIS DATA IS POLICE SCOTLAND MANAGEMENT INFORMATION,"]
["NOT OFFICIAL STATISTICS"]
[]
["APRIL - JUNE 2025/26"]
[]
[]
[]
[]
[]
[]
[]
[]
["Produced by Police Scotland Analysis and Performance Unit"]
["2025-07-02"]

{"sheet":"Contents","index":1,"n_rows":51,"n_cols":6,"rows_kept":51,"cut":false,"hidden":false,"merged":[[50,3,50,5]]}
["Contents"]
[]
["The Code of Practice",2]
["Commentary Notes",3]
["Definition of a Stop and Search",4]
["Stop and Searches, Legislation ",5]
[]
["Stop and Searches"]
["Stop and Searches by Local Authority",6]
["Stop and Searches by Legislation",7]
["Search Outcomes",8]
["Stop and Search Receipts",9]
[]
["Items Found During a Search"]
["Main Item Found Classification by Search Reason",10]
["Drugs Found by Local Authority",11]
["Weapons Found by Local Authority",12]
["Other Items Found by Local Authority",13]
[]
["Demographic of Nominals Searched"]
["Searches by Ethnicity/National Origin",14]
["Searches by Age and Gender",15]
[]
["Public Order Search Powers"]
["Use of Powers under Section 60 Criminal Justice and Public Order Act 1994",16]
[]
[]
[]
[]
[]
[]
[]
[]
[]
[]
[]
[]
[]
[]
[]
[]
[]
[]
[]
[]
[]
[]
[]
[]
[null,null,null,null,null,"Produced by Police Scotland Analysis and Performance Unit"]
[null,null,null,"2025-07-01"]

{"sheet":"The CoP","index":2,"n_rows":42,"n_cols":1,"rows_kept":42,"cut":false,"hidden":false,"merged":[]}
["The Code of Practice on the Exercise by Constables of Powers of Stop"]
["and Search of the Person in Scotland"]
[]
["The Code came into effect on 11 May 2017. The Code governs all situations in which constables stop and search "]
["a person without first making an arrest, unless the search is expressly excluded, either under the Code, by "]
["statute, or by virtue of the search being subject to a separate statutory Code or guidance as to its exercise. The "]
["Code also sets out the requirements to be followed by the Police for recording information in relation to all stop"]
["and search activity covered by the Code."]
[]
["The Code requires as soon as practicable after the end of each reporting year (ending 31 March), the Chief "]
["Constable of a relevant police service must publish, information on how many times during the reporting year a "]
["stop and search was carried out in Scotland by constables of that service. In addition, so far as practicable, the "]
["information is to disclose:"]
[]
["(a) the number of stops and searches carried out under each statutory power;"]
["(b) how many persons were searched on two or more occasions"]
["(c) the age and gender, and the ethnic and national origin, of the persons searched"]
["(d) the proportion of searches that resulted in:"]
["(i) something being recovered by a constable, including information as to the number of cases in which the item "]
["recovered was of the type suspected by the constable at the outset of the search"]
["(ii) a case being reported to the Procurator Fiscal"]
["(e) the number of authorisations issued under section 60 of the Criminal Justice and Public Order Act 1994"]
["(f) the number of complaints made to a relevant police service about the carrying out of searches "]
["(or the manner in which they were carried out) in Scotland by constables of that service."]
["(g) the number of receipts issued"]
[]
["The National Stop and Search Database was upgraded to coincide with the introduction of the Code. "]
["These changes included:"]
["(a) Cessation of the recording of consensual search"]
["(b) A new category to include searches of a person carried out in accordance with a search warrant issued by a court in Scotland"]
["(c) Addition of a new power under Section 66 of the Criminal Justice (Scotland) Act 2016, removal of a person"]
["(d) A new search type ‘Protection of Life’ recorded for when an officer conducts a search (in accordance with section 3.4 of "]
["the Code), under the overarching principles of Section 20 or 32 of the Police and Fire Reform (Scotland) Act 2012, as part of"]
["taking all steps necessary to protect life"]
["(e) A new search type ‘Other’ recorded for when an officer believes it is necessary to conduct a search that is not "]
["for the protection of life and where no specific statutory power exists and considers their actions to be justified, "]
["the officer should enter Police and Fire Reform (Scotland) Act as the ‘Power of Search used’"]
["(f) Officer’s estimate of the age group of the person searched (under the age of 18 or 18 years of age and over) if not provided"]
[]
["The Code is available at police stations and on the stop and search page of the Police Scotland website (www.scotland.police.uk)."]
["The Code is available at police stations and on the stop and search page of the Police Scotland website:"]
["Police Scotland Website"]

{"sheet":"Commentary page","index":3,"n_rows":41,"n_cols":1,"rows_kept":41,"cut":false,"hidden":false,"merged":[]}
["Commentary Notes on Management Information"]
[]
["Force Level Highlights"]
["1. All statistics are provisional and should be treated as management information. All data have been extracted "]
["from Police Scotland internal systems and are correct as of 21st July 2025."]
[]
["2. This report shows the data of the enhanced database 1st April 2025 - 30th June 2025."]
[]
["3. This data shows that Police Scotland is delivering the improvements set out in the Stop and Search "]
["Improvement Plan and is committed to sustaining and building on those improvements and maintaining "]
["community confidence."]
[]
["4. An enhanced database was rolled out across Scotland on 1st June 2015 which included additional validations "]
["designed to improve the quality of the data by preventing inaccurate data capture through input error. Further "]
["enhancements have followed, significantly allowing more detail to be recorded since the introduction of the Code "]
["of Practice. Following the review of the data captured on the National Stop and Search Database for the period "]
["specified, it is evident that the introduction of these validation checks has made a significant impact on the level "]
["of data input errors."]
[]
["5. In relation to outcomes the National Stop Search Unit (NSSU) do not validate or compare search outcomes "]
["from the National Stop Search Database with other Police systems."]
[]
["Ongoing Quality Assurance"]
["As part of Police Scotland's duty under data protection and our quality assurance process, records held on the "]
["database may be reviewed and may be subject to amendment. This involves liaising with the officer(s) involved "]
["to confirm any aspect of the recorded data which is unclear.  Any adjustment in respect of these records will be "]
["reflected in future stop and search publications.  "]
[]
[]
["Complaints"]
["For the period 1st April 2025 - 30th June 2025 a total of 16 complaints have been received by Police Scotland\n"]
["in relation to the use of stop and search."]
[]
["Persons Searched on Two or More Occasions"]
["Between 1st April 2025 - 30th June 2025, 1140 persons have been searched on two or more occasions."]
["As the National Stop and Search Database is not nominal-centric this figure can be affected by a number of "]
["variables such as persons providing alias names or variations in spellings."]
[]
["Comparisons with Historical Data"]
["Due to changes in data recording to bring the National Stop and Search Database in line with the Code of Practice,"]
["direct comparisons with historical data would provide invalid or misleading conclusions."]

{"sheet":"Definitions","index":4,"n_rows":19,"n_cols":1,"rows_kept":19,"cut":false,"hidden":false,"merged":[]}
["Definition of a Stop and Search"]
[]
[]
[]
["Stop and Search"]
["A stop and search is one conducted by a police officer in the course of their duties where a person who is not in police"]
["custody is searched using a specific statutory provision or in accordance with a search warrant issued by a court in "]
["Scotland."]
[]
["Positive Stop and Search"]
["A positive stop and search is when an item is recovered where possession of same implies criminality on the part "]
["of the person being searched or any other or where an item has been recovered which is potentially harmful."]
[]
["N.B. When a stop and search under a statutory provision has taken place and alcohol, tobacco or NPS is recovered, "]
["depending on the circumstances this should be recorded as a positive stop and search on the Stop and Search Database."]
[]
["Recordable Stop and Search (must be recorded on the National Stop and Search Database)"]
["A recordable stop and search is any stop and search, with the exception of condition of entry searches (Section 67 Criminal "]
["Justice (Scotland) Act 2016) or Schedule 7 of the Terrorism Act 2000 (which is governed by different Codes of Practice)."]

{"sheet":"Legal Definitions","index":5,"n_rows":51,"n_cols":2,"rows_kept":51,"cut":false,"hidden":false,"merged":[]}
["Stop and Searches, Legislation"]
[]
[]
[]
["The following table identifies the type of searches recorded on the National Stop and Search Database, along with the specific legislation relative to each search type:\n"]
[]
["Search Type","Recordable Statute"]
[]
["Search Warrants ","S109(1) Copyright, Designs and Patents Act 1988 (Piracy and trademark offences etc)"]
["Search Warrants ","S142(1) Criminal Justice Act, 1988 (Search of premises for offensive weapons)"]
["Search Warrants ","S23(3) Misuse Of Drugs Act 1971"]
["Search Warrants ","S24(1) Forgery and Counterfeiting Act, 1981 (Search for counterfeit money)"]
["Search Warrants ","S27 Deer (Scotland) Act 1996"]
["Search Warrants ","S28B(4) Immigration Act 1971"]
["Search Warrants ","S292(3) Mental Health Care and Treatment Scotland Act 2003"]
["Search Warrants ","S42(1) Terrorism Act 2000"]
["Search Warrants ","S46(1) Firearms Act 1968"]
["Search Warrants ","Other Legislation"]
["Drugs ","S23(2) Misuse of Drugs Act 1971 (Controlled Drugs) "]
["Drugs ","S23A Misuse of Drugs Act 1971 (Temp Class Drugs) "]
["Care and Welfare ","S66 Criminal Justice (Scot) Act 2016"]
["NPS ","S36 Psychoactive Substances Act 2016 (Supply etc.) "]
["Stolen Property ","S60 Civic Government (Scot) Act 1982 "]
["Weapons ","S48(1) Criminal Law (Cons) (Scot) Act 1995 (Offensive weapons) "]
["Weapons ","S49(B) Criminal Law (Cons) (Scot) Act 1995 (Offensive weapons in Schools) "]
["Weapons ","S50 Criminal Law (Cons) (Scot) Act 1995 (Bladed or Pointed Articles) "]
["Weapons ","S11 Offensive Weapons Act 2019 (Corrosive Substances)"]
["Firearms ","S47(1) Firearms Act 1968 "]
["Firearms ","S4 Crossbows Act 1987 "]
["Fireworks ","S11A Fireworks Act 2003 "]
["Fireworks ","S41 Fireworks and Pyrotechnic Articles (Scotland) Act 2022"]
["Protection of Life","S20/32 Police & Fire Reform (Scot) Act 2012 "]
["Aviation","S24B Aviation Security Act 1982 (Stolen or prohibited items in Aerodromes)"]
["Aviation","Edinburgh Airport Byelaws 2015 (Search in interest of public safety)"]
["Aviation","Schedule 8(2) Air Traffic Management and Unmanned Aircraft Act 2021"]
["Wildlife","S19 Wildlife & Countryside Act 1981"]
["Wildlife","S11 Protection of Badgers Act 1992"]
["Wildlife","S101 Conservation (Natural Habitats etc.) Regulations 1994"]
["Wildlife","S27 Deer (Scot) Act 1996"]
["Wildlife","S4 Wild Mammals (Protection) Act 1996"]
["Wildlife","S7 Wild Mammals (Scot) Act 2002"]
["Wildlife","S53(1) Salmon & Freshwater Fisheries (Cons) (Scot) Act 2003"]
["Terrorism","S43 Terrorism Act 2000 (Suspect terrorist)"]
["Terrorism","S47A Terrorism Act 2000 (Authority of Assistant Chief Constable or above) "]
["Sporting Events","S21 Criminal Law (Cons) (Scot) Act 1995 (Controlled items) - Alcohol"]
["Sporting Events","S21 Criminal Law (Cons) (Scot) Act 1995 (Controlled items) - Controlled Containers"]
["Sporting Events","S21 Criminal Law (Cons) (Scot) Act 1995 (Controlled items) - Controlled Article or Substance"]
["Public Order","S60 Criminal Justice & Public Order Act 1994 (Authority of inspector or above)"]
["Proceeds of Crime","S289 Proceeds of Crime Act 2002 (Prior approval - cash)"]
["Proceeds of Crime","S303C Proceeds of Crime Act 2002 (Prior approval - listed assets)"]
["Other","S20/32 Police & Fire Reform (Scot) Act 2012 "]

{"sheet":"Number of Searches","index":6,"n_rows":45,"n_cols":12,"rows_kept":45,"cut":false,"hidden":false,"merged":[[47,0,47,4]]}
["Table 1.1"]
["Stop and Searches by Local Authority - Police Scotland"]
[{"$f":"CONCATENATE(\"Period: \",L7)","v":"Period: April to June 2025"}]
[]
[null,"Local Authority ","Number of Searches","Positive Searches","Positive Rate (%)"]
[]
["North",null,null,null,null,null,null,null,null,null,null,"April to June 2025"]
[null,"Highland",241,128,{"$f":"D8/C8*100","v":53.11203319502075}]
[null,"Orkney Islands",21,11,{"$f":"D9/C9*100","v":52.380952380952387}]
[null,"Shetland Islands",19,3,15.789473684210526]
[null,"Eilean Siar",15,5,33.333333333333329]
[null,"Aberdeen City",206,75,36.407766990291265]
[null,"Aberdeenshire",217,60,27.649769585253459]
[null,"Moray",112,42,37.5]
[null,"Perth and Kinross",92,33,35.869565217391305]
[null,"Dundee",210,32,15.238095238095239]
[null,"Angus",132,28,21.212121212121211]
[]
["East"]
[null,"Fife",509,110,21.611001964636543]
[null,"East Lothian",50,21,42]
[null,"Edinburgh City",414,158,38.164251207729464]
[null,"Midlothian",12,5,41.666666666666671]
[null,"Scottish Borders",15,11,73.333333333333329]
[null,"West Lothian",35,7,20]
[null,"Clackmannanshire",86,23,26.744186046511626]
[null,"Falkirk",68,22,32.352941176470587]
[null,"Stirling",105,32,30.476190476190478]
[]
["West"]
[null,"Argyll & Bute",252,73,28.968253968253972]
[null,"East Ayrshire",290,74,25.517241379310345]
[null,"East Dunbartonshire",274,47,17.153284671532848]
[null,"East Renfrewshire",131,20,15.267175572519085]
[null,"Glasgow City",3689,825,22.363784223366768]
[null,"Inverclyde",311,68,21.864951768488748]
[null,"North Ayrshire",261,70,26.819923371647509]
[null,"North Lanarkshire",1389,321,23.110151187904968]
[null,"Renfrewshire",277,90,32.490974729241877]
[null,"South Ayrshire",203,52,25.615763546798032]
[null,"South Lanarkshire",1453,258,17.75636613902271]
[null,"West Dunbartonshire",166,48,28.915662650602407]
[null,"Dumfries and Galloway",321,111,34.579439252336449]
[]
["Force",null,{"$f":"SUM(C7:C44)","v":11576},{"$f":"SUM(D7:D44)","v":2863},24.732204561161023]

{"sheet":"Search Reason","index":7,"n_rows":89,"n_cols":4,"rows_kept":89,"cut":false,"hidden":false,"merged":[]}
["Table 1.2"]
["Stop and Search by Legislation - Police Scotland"]
[{"$f":"'Number of Searches'!$A$3","v":"Period: April to June 2025"}]
[]
["Legislation","Number of Searches","Positive Searches","Positive Rate (%)"]
[]
["Drugs",{"$f":"SUM(B8:B9)","v":7991},{"$f":"SUM(C8:C9)","v":2184},{"$f":"C7/B7*100","v":27.330747090476788}]
["S23(2) Misuse of Drugs Act 1971 (Controlled Drugs) ",7975,2182,{"$f":"C8/B8*100","v":27.360501567398121}]
["S23A Misuse of Drugs Act 1971 (Temp Class Drugs) ",16,2,{"$f":"IFERROR(C9/B9*100,\"-\")","v":12.5}]
[]
["NPS",{"$f":"B12","v":"-"},{"$f":"C12","v":"-"},{"$f":"IFERROR(C11/B11*100,\"-\")","v":"-"}]
["S36 Psychoactive Substances Act 2016 (Supply etc.) ","-","-",{"$f":"IFERROR(C12/B12*100,\"-\")","v":"-"}]
[]
["Weapons",{"$f":"SUM(B15:B18)","v":903},{"$f":"SUM(C15:C18)","v":157},{"$f":"C14/B14*100","v":17.386489479512733}]
["S48(1) Criminal Law (Cons) (Scot) Act 1995 (Offensive weapons) ",354,64,18.07909604519774]
["S49(B) Criminal Law (Cons) (Scot) Act 1995 (Offensive weapons in Schools) ",20,7,35]
["S50 Criminal Law (Cons) (Scot) Act 1995 (Bladed or Pointed Articles) ",528,85,16.098484848484848]
["    S11 Offensive Weapons Act 2019 (Corrosive Substances)",1,1,{"$f":"IFERROR(C18/B18*100,\"-\")","v":100}]
["Stolen Property",{"$f":"B20","v":654},{"$f":"C20","v":283},43.272171253822627]
["S60 Civic Government (Scot) Act 1982 ",654,283,43.272171253822627]
[]
["Sporting Events",{"$f":"B23","v":5},{"$f":"C23","v":1},{"$f":"IFERROR(C22/B22*100,\"-\")","v":20}]
["S21 Criminal Law (Cons) (Scot) Act 1995 (Controlled items) ",5,1,{"$f":"IFERROR(C23/B23*100,\"-\")","v":20}]
[]
["Firearms",{"$f":"SUM(B26:B27)","v":19},{"$f":"SUM(C26:C27)","v":5},26.315789473684209]
["S47(1) Firearms Act 1968 ",19,5,26.315789473684209]
["S4 Crossbows Act 1987 ","-","-",{"$f":"IFERROR(C27/B27*100,\"-\")","v":"-"}]
[]
["Fireworks",{"$f":"SUM(B30:B31)","v":20},{"$f":"SUM(C30:C31)","v":5},{"$f":"IFERROR(C29/B29*100,\"-\")","v":25}]
["S11A Fireworks Act 2003 ",1,0,{"$f":"IFERROR(C30/B30*100,\"-\")","v":0}]
["    S41 Fireworks and Pyrotechnic Articles (Scotland) Act 2022",19,5,{"$f":"IFERROR(C31/B31*100,\"-\")","v":26.315789473684209}]
["Terrorism",{"$f":"B33","v":1},{"$f":"C33","v":"-"},"-"]
["S43 Terrorism Act 2000",1,"-","-"]
[]
["Public Order",{"$f":"B36","v":"-"},{"$f":"C36","v":"-"},{"$f":"IFERROR(C35/B35*100,\"-\")","v":"-"}]
["S60 Criminal Justice & Public Order Act 1994 (Authority of inspector or above)","-","-",{"$f":"IFERROR(C36/B36*100,\"-\")","v":"-"}]
[null,null,null,{"$f":"IFERROR(C37/B37*100,\"-\")","v":"-"}]
["Wildlife",{"$f":"IF(SUM(B39:B45)=0,\"-\",SUM(B39:B45))","v":"-"},{"$f":"IF(SUM(C39:C45)=0,\"0\",SUM(C39:C45))","v":"0"},"-"]
["S19 Wildlife & Countryside Act 1981","-","-","-"]
["S11 Protection of Badgers Act 1992","-","-","-"]
["S101 Conservation (Natural Habitats etc.) Regulations 1994","-","-","-"]
["S27 Deer (Scot) Act 1996","-","-","-"]
["S4 Wild Mammals (Protection) Act 1996","-","-","-"]
["S7 Wild Mammals (Scot) Act 2002","-","-","-"]
["S53(1) Salmon & Freshwater Fisheries (Cons) (Scot) Act 2003","-","-","-"]
[null,null,null,"-"]
["Aviation",{"$f":"IF(SUM(B48:B50)=0,\"-\",SUM(B48:B50))","v":"-"},{"$f":"IF(B47=\"-\",\"-\",SUM(C48:C50))","v":"-"},"-"]
["S24B Aviation Security Act 1982 (Stolen or prohibited items in Aerodromes)","-","-","-"]
["Edinburgh Airport Byelaws 2015 (Search in interest of public safety)","-","-","-"]
["Schedule 8(2) Air Traffic Management and Unmanned Aircraft Act 2021","-","-","-"]
[null,null,null,"-"]
["Search Warrants ",{"$f":"SUM(B53:B62)","v":450},{"$f":"SUM(C53:C62)","v":134},29.777777777777775]
["S109(1) Copyright, Designs and Patents Act 1988 (Piracy and trademark offences etc)","-","-","-"]
["S142(1) Criminal Justice Act, 1988 (Search of premises for offensive weapons)","-","-","-"]
["S23(3) Misuse Of Drugs Act 1971",419,127,30.310262529832936]
["S24(1) Forgery and Counterfeiting Act, 1981 (Search for counterfeit money)","-","-","-"]
["S27 Deer (Scotland) Act 1996","-","-","-"]
["S28B(4) Immigration Act 1971","-","-","-"]
["S292(3) Mental Health Care and Treatment Scotland Act 2003","-","-","-"]
["S42(1) Terrorism Act 2000","-","-","-"]
["S46(1) Firearms Act 1968",10,2,20]
["Other Legislation",21,5,23.809523809523807]
[null,null,null,"-"]
["Proceeds of Crime",{"$f":"B65","v":2},{"$f":"C65","v":1},50]
["S289 Proceeds of Crime Act 2002 (Prior approval required - cash)",2,1,50]
["S303C Proceeds of Crime Act 2002 (Prior approval required - listed assets)","-","-","-"]
[null,null,null,"-"]
["Care and Welfare",{"$f":"B69","v":1417},{"$f":"C69","v":63},4.4460127028934373]
["S66 Criminal Justice (Scot) Act 2016",1417,63,4.4460127028934373]
[null,null,null,"-"]
["Protection of Life",{"$f":"B72","v":75},{"$f":"C72","v":17},22.666666666666664]
["S20/32 Police & Fire Reform (Scot) Act 2012 ",75,17,22.666666666666664]
[]
["Other",{"$f":"IF(SUM(B75)=0,\"-\",SUM(B75))","v":39},{"$f":"(SUM(C75))","v":13},33.333333333333329]
["S20/32 Police & Fire Reform (Scot) Act 2012 ",39,13,33.333333333333329]
[]
["Total Searches",{"$f":"SUM(B74,B71,B68,B52,B64,B47,B38,B35,B32,B29,B25,B22,B19,B14,B11,B7)","v":11576},{"$f":"SUM(C74,C71,C68,C52,C64,C47,C38,C35,C32,C29,C25,C22,C19,C14,C11,C7)","v":2863},24.732204561161023]
[]
["Public Order"]
["Searches Conducted","-"]
["Positive Searches","-"]
["Positive Rate (%)",{"$f":"IF(B81=\"-\",\"-\",B81/B80*100)","v":"-"}]
[]
[]
["1 - The search type ‘Other’ refers to when an officer believes it is necessary to conduct a search that is not for the"]
["protection of life and where no specific statutory power exists and considers their actions to be justified."]
["2 - Positive rates for searches under the Terrorism Act 2000 are not published for operational and security "]
["reasons. Statistical information about the operation of police powers under the Terrorism Act 2000 is available at"]
["Operation of Police Powers Under the Terrorism Act 2000"]

{"sheet":"Overall search outcomes","index":8,"n_rows":23,"n_cols":3,"rows_kept":23,"cut":false,"hidden":false,"merged":[]}
["Table 1.3"]
["Search Outcomes - Police Scotland"]
[{"$f":"'Number of Searches'!$A$3","v":"Period: April to June 2025"}]
[]
["Disposal","Number of Searches","% Of Total Searches"]
[]
["Fixed Penalty Notice",50,{"$f":"B7/'Number of Searches'!C45*100","v":0.43192812715964063}]
["SPR2",1526,{"$f":"B8/'Number of Searches'!C45*100","v":13.182446440912232}]
["No Further Action",6937,{"$f":"B9/'Number of Searches'!C45*100","v":59.925708362128539}]
["IVPD",530,{"$f":"B10/'Number of Searches'!C45*100","v":4.5784381478921912}]
["SID Log",2168,{"$f":"B11/'Number of Searches'!C45*100","v":18.728403593642017}]
["Recorded Police Warning",1407,{"$f":"IF(B12=\"-\",\"-\",B12/'Number of Searches'!C45*100)","v":12.154457498272288}]
[]
[]
["Key:     SPR2 – Standard Prosecution Reports"]
["             IVPD – Interim Vulnerable Persons Database"]
["             SID - Scottish Intelligence Database"]
["3 - Any anomilies in percentage changes are due to rounding up to the nearest decimal place."]
["4 - Some searches are recorded with more than one disposal so totals will not equal the actual number of stop and searches."]
["5 - A search can have more than one disposal from the list and provides the outcome and/or further action taken by officers."]
["6 - The NSSU do not currently validate disposals on the National Stop and Search Database against "]
["other recording systems. This information is captured for internal management purposes only."]
["7 - SPR2 is a new category of disposal introduced on the 11 May 2017 to meet reporting requirements of the Code of Practice."]

{"sheet":"Receipts","index":9,"n_rows":13,"n_cols":5,"rows_kept":13,"cut":false,"hidden":false,"merged":[]}
["Table 1.4"]
["Stop and Search Receipts - Police Scotland"]
[{"$f":"'Number of Searches'!$A$3","v":"Period: April to June 2025"}]
[]
[null,null,"Number of Searches","Receipts Issued","Issue Rate (%)"]
[]
[]
["Force",null,11576,7524,{"$f":"D8/C8*100","v":64.996544574982721}]
[]
[]
["8 - Officers may not issue a receipt if the person searched refuses to accept it or if the officer is called "]
["to an urgent incident. In all cases the record will be subject to a review to ensure compliance with the "]
["Code of Practice."]

{"sheet":"Search Different to Outcome","index":10,"n_rows":27,"n_cols":15,"rows_kept":27,"cut":false,"hidden":false,"merged":[]}
["Table 2.1"]
["Main Item Found Classification by Search Reason - Police Scotland"]
[{"$f":"'Number of Searches'!A3","v":"Period: April to June 2025"}]
[]
[null,null,null,null,null,null,null,"Main Item Found Classification"]
["Reason for Search","Total Positive Searches","Drugs","NPS","Stolen Property","Weapons","Firearms","Fireworks","Controlled Container","Controlled Article","Alcohol","Tobacco and Cigarette Papers","Money","Other","Aviation"]
[]
["Drugs",{"$f":"'Search Reason'!C7","v":2184},2019,6,10,109,1,1,3,"-",61,16,26,37,"-"]
["New Psychoactive Substances",{"$f":"'Search Reason'!C11","v":"-"},"-","-","-","-","-","-","-","-","-","-","-","-","-"]
["Stolen Property",{"$f":"'Search Reason'!C19","v":283},22,"-",216,16,"-","-",1,"-",43,3,1,14,"-"]
["Weapons",{"$f":"'Search Reason'!C14","v":157},20,"-","-",139,1,"-","-","-",7,"-","-",5,"-"]
["Firearms",{"$f":"'Search Reason'!C25","v":5},3,"-","-",1,2,"-","-","-","-","-","-","-","-"]
["Fireworks",{"$f":"IF('Search Reason'!C29=0,\"-\",'Search Reason'!C29)","v":5},1,"-","-","-","-",4,"-","-","-","-","-","-","-"]
["Aviation",{"$f":"IF('Search Reason'!C47=0,\"-\",'Search Reason'!C47)","v":"-"},"-","-","-","-","-","-","-","-","-","-","-","-","-"]
["Wildlife",{"$f":"IF('Search Reason'!C38= \"0\",\"-\",'Search Reason'!C38)","v":"-"},"-","-","-","-","-","-","-","-","-","-","-","-","-"]
["Sporting Events",{"$f":"'Search Reason'!C22","v":1},"-","-","-","-","-",1,"-","-","-","-","-","-","-"]
["Public Order",{"$f":"IF('Search Reason'!C35=0,\"-\",'Search Reason'!C35)","v":"-"},"-","-","-","-","-","-","-","-","-","-","-","-","-"]
["Proceed of Crime",{"$f":"IF('Search Reason'!C64=0,\"-\",'Search Reason'!C64)","v":1},"-","-","-","-","-","-","-","-","-","-","-",1,"-"]
["Care & Welfare",{"$f":"'Search Reason'!C68","v":63},36,1,"-",13,"-","-","-","-",6,3,"-",7,"-"]
["Warrant",{"$f":"'Search Reason'!C52","v":134},128,1,1,4,4,"-","-","-","-",1,3,4,"-"]
["Protection of Life",{"$f":"IF('Search Reason'!C71=0,\"-\",'Search Reason'!C71)","v":17},1,"-","-",10,"-","-","-","-","-","-","-",6,"-"]
["Other",{"$f":"IF('Search Reason'!C74=0,\"-\",'Search Reason'!C74)","v":13},2,"-","-",1,"-","-","-","-",8,"-","-",3,"-"]
[]
["Force",{"$f":"IF(SUM(B8:B22)=0,\"-\",SUM(B8:B22))","v":2863},2232,8,227,293,8,6,4,"-",125,23,30,77,{"$f":"IF(SUM(O8:O22)=0,\"-\",SUM(O8:O22))","v":"-"}]
[]
[]
["9 - Items found may be higher than total positive searches as multiple items may be found in one search."]

{"sheet":"Items Found - Drugs","index":11,"n_rows":49,"n_cols":7,"rows_kept":49,"cut":false,"hidden":false,"merged":[]}
["Table 2.2"]
["Drugs found by Local Authority Area - Police Scotland"]
[{"$f":"'Number of Searches'!$A$3","v":"Period: April to June 2025"}]
[]
[null,"Local Authority","Class A","Class B","Class C","NPS","Total"]
[]
[null,null,"Number of searches where drugs were found"]
["North"]
[null,"Highland",47,76,8,"-",{"$f":"SUM(C9:F9)","v":131}]
[null,"Orkney Islands",7,3,1,"-",11]
[null,"Shetland Islands","-",3,1,"-",4]
[null,"Eilean Siar",2,2,"-","-",{"$f":"IF(SUM(C12:F12) =0,\"-\",SUM(C12:F12))","v":4}]
[null,"Aberdeen City",24,42,6,"-",72]
[null,"Aberdeenshire",24,27,4,"-",55]
[null,"Moray",19,21,2,"-",42]
[null,"Perth & Kinross",6,11,3,1,21]
[null,"Dundee",9,10,5,"-",24]
[null,"Angus",2,14,2,"-",{"$f":"SUM(C18:F18)","v":18}]
[]
["East"]
[null,"Fife",31,51,7,3,{"$f":"SUM(C21:F21)","v":92}]
[null,"East Lothian",5,17,4,"-",26]
[null,"Edinburgh City",66,62,8,"-",136]
[null,"Midlothian","-",5,"-","-",5]
[null,"Scottish Borders",1,6,"-","-",7]
[null,"West Lothian","-",5,"-","-",5]
[null,"Clackmannanshire",9,11,4,1,25]
[null,"Falkirk",6,11,2,"-",19]
[null,"Stirling",3,21,3,"-",27]
[]
["West"]
[null,"Argyll & Bute",11,51,7,"-",{"$f":"SUM(C32:F32)","v":69}]
[null,"East Ayrshire",21,30,3,"-",54]
[null,"East Dunbartonshire",8,22,1,"-",31]
[null,"East Renfrewshire",2,14,1,"-",17]
[null,"Glasgow City",162,462,49,1,674]
[null,"Inverclyde",39,30,11,"-",80]
[null,"North Ayrshire",26,28,4,"-",58]
[null,"North Lanarkshire",79,181,15,"-",275]
[null,"Renfrewshire",32,29,5,1,67]
[null,"South Ayrshire",12,13,7,"-",32]
[null,"South Lanarkshire",60,115,11,1,187]
[null,"West Dunbartonshire",10,23,7,"-",40]
[null,"Dumfries & Galloway",27,62,10,"-",99]
[]
["Force",null,{"$f":"SUM(C9:C44)","v":750},{"$f":"SUM(D9:D44)","v":1458},{"$f":"SUM(E9:E44)","v":191},{"$f":"SUM(F9:F44)","v":8},{"$f":"SUM(G9:G44)","v":2407}]
[]
[]
["10 - Due to multiple items being found in one search, the totals will not reflect the overall number of searches."]

{"sheet":"Items Found - Weapons","index":12,"n_rows":49,"n_cols":8,"rows_kept":49,"cut":false,"hidden":false,"merged":[[48,0,48,6]]}
["Table 2.3"]
["Weapons found by Local Authority Area - Police Scotland"]
[{"$f":"'Number of Searches'!$A$3","v":"Period: April to June 2025"}]
[]
[null,"Local Authority","Bladed Instrument","Blunt Instrument","Pointed Article","Pointed Instrument","Other","Total"]
[]
[null,null,"Number of searches where weapons were found"]
["North"]
[null,"Highland",8,8,"-","-",2,{"$f":"SUM(C9:G9)","v":18}]
[null,"Orkney Islands","-","-","-","-","-",{"$f":"IF(SUM(C10:G10) =0,\"-\",SUM(C10:G10))","v":"-"}]
[null,"Shetland Islands","-","-","-","-","-",{"$f":"IF(SUM(C11:G11) =0,\"-\",SUM(C11:G11))","v":"-"}]
[null,"Eilean Siar","-","-","-","-","-",{"$f":"IF(SUM(C12:G12)=0,\"-\",SUM(C12:G12))","v":"-"}]
[null,"Aberdeen City",1,"-",1,"-",4,6]
[null,"Aberdeenshire",2,3,"-","-","-",{"$f":"IF(SUM(C14:G14)=0,\"-\",SUM(C14:G14))","v":5}]
[null,"Moray",2,"-",1,"-","-",{"$f":"IF(SUM(C15:G15)=0,\"-\",SUM(C15:G15))","v":3}]
[null,"Perth & Kinross",1,"-",2,"-",1,{"$f":"IF(SUM(C16:G16)=0,\"-\",SUM(C16:G16))","v":4}]
[null,"Dundee",1,"-",2,"-","-",3]
[null,"Angus",1,1,2,"-",1,5]
[]
["East"]
[null,"Fife",12,4,3,"-",1,20]
[null,"East Lothian","-",1,"-","-","-",1]
[null,"Edinburgh City",13,4,4,"-","-",21]
[null,"Midlothian","-","-","-","-","-","-"]
[null,"Scottish Borders","-","-","-","-","-",{"$f":"SUM(C25:G25)","v":0}]
[null,"West Lothian",1,"-","-","-","-",1]
[null,"Clackmannanshire",1,"-",1,"-","-",{"$f":"IF(SUM(C27:G27)=0,\"-\",SUM(C27:G27))","v":2}]
[null,"Falkirk",1,1,"-","-","-",{"$f":"IF(SUM(C28:G28)=0,\"-\",SUM(C28:G28))","v":2}]
[null,"Stirling",1,1,1,"-",1,{"$f":"IF(SUM(C29:G29)=0,\"-\",SUM(C29:G29))","v":4}]
[]
["West"]
[null,"Argyll & Bute",5,"-",3,"-","-",{"$f":"SUM(C32:G32)","v":8}]
[null,"East Ayrshire",3,2,4,"-","-",9]
[null,"East Dunbartonshire",2,1,"-","-","-",{"$f":"IF(SUM(C34:G34)=0,\"-\",SUM(C34:G34))","v":3}]
[null,"East Renfrewshire",2,3,1,"-",1,{"$f":"IF(SUM(C35:G35)=0,\"-\",SUM(C35:G35))","v":7}]
[null,"Glasgow City",44,17,21,"-",4,86]
[null,"Inverclyde",2,1,"-","-","-",{"$f":"IF(SUM(C37:G37)=0,\"-\",SUM(C37:G37))","v":3}]
[null,"North Ayrshire",7,3,2,"-","-",12]
[null,"North Lanarkshire",26,5,5,"-",3,39]
[null,"Renfrewshire",9,"-",6,"-",2,17]
[null,"South Ayrshire",3,1,"-","-","-",4]
[null,"South Lanarkshire",12,7,2,"-",1,22]
[null,"West Dunbartonshire",5,"-",2,"-","-",7]
[null,"Dumfries & Galloway",4,4,2,"-",1,11]
[]
["Force",null,{"$f":"SUM(C9:C44)","v":169},{"$f":"SUM(D8:D44)","v":67},{"$f":"SUM(E9:E44)","v":65},{"$f":"IF(SUM(F9:F44)=0,\"-\",SUM(F9:F44))","v":"-"},{"$f":"IF(SUM(G9:G44)=0,\"-\",SUM(G9:G44))","v":22},{"$f":"SUM(H8:H44)","v":323}]
[]
[]
["11 - Due to multiple items being found in one search, the totals will not reflect the overall number of searches."]

{"sheet":"Items Found - Other","index":13,"n_rows":49,"n_cols":8,"rows_kept":49,"cut":false,"hidden":false,"merged":[]}
["Table 2.4"]
["Other Items found by Local Authority Area - Police Scotland"]
[{"$f":"'Number of Searches'!$A$3","v":"Period: April to June 2025"}]
[]
[null,"Local Authority","Firearms","Fireworks","Stolen Property","Alcohol","Other","Total"]
[]
[null,null,"Number of searches where other items were found"]
["North"]
[null,"Highland","-","-",6,3,"-",{"$f":"SUM(C9:G9)","v":9}]
[null,"Orkney Islands","-","-","-","-","-",{"$f":"IF(SUM(C10:G10) =0,\"-\",SUM(C10:G10))","v":"-"}]
[null,"Shetland Islands","-","-","-","-","-",{"$f":"IF(SUM(C11:G11)=0,\"-\",SUM(C11:G11))","v":"-"}]
[null,"Eilean Siar","-","-","-",1,"-",{"$f":"IF(SUM(C12:G12)=0,\"-\",SUM(C12:G12))","v":1}]
[null,"Aberdeen City","-","-",4,"-",2,{"$f":"IF(SUM(C13:G13)=0,\"-\",SUM(C13:G13))","v":6}]
[null,"Aberdeenshire","-","-",2,"-","-",{"$f":"IF(SUM(C14:G14)=0,\"-\",SUM(C14:G14))","v":2}]
[null,"Moray","-","-","-",1,3,{"$f":"IF(SUM(C15:G15)=0,\"-\",SUM(C15:G15))","v":4}]
[null,"Perth & Kinross","-","-",6,2,2,{"$f":"SUM(C16:G16)","v":10}]
[null,"Dundee","-","-",5,"-",1,{"$f":"SUM(C17:G17)","v":6}]
[null,"Angus","-","-",6,"-","-",{"$f":"IF(SUM(C18:G18)=0,\"-\",SUM(C18:G18))","v":6}]
[]
["East"]
[null,"Fife","-",1,4,7,3,{"$f":"SUM(C21:G21)","v":15}]
[null,"East Lothian","-","-","-","-","-",{"$f":"SUM(C22:G22)","v":0}]
[null,"Edinburgh City","-","-",21,2,8,{"$f":"SUM(C23:G23)","v":31}]
[null,"Midlothian","-","-","-","-","-",{"$f":"SUM(C24:G24)","v":0}]
[null,"Scottish Borders","-","-","-",3,1,{"$f":"IF(SUM(C25:G25)=0,\"-\",SUM(C25:G25))","v":4}]
[null,"West Lothian","-","-",1,1,"-",{"$f":"IF(SUM(C26:G26)=0,\"-\",SUM(C26:G26))","v":2}]
[null,"Clackmannanshire","-","-","-","-","-",{"$f":"IF(SUM(C27:G27)=0,\"-\",SUM(C27:G27))","v":"-"}]
[null,"Falkirk","-",1,"-",1,"-",{"$f":"SUM(C28:G28)","v":2}]
[null,"Stirling","-","-",5,"-","-",{"$f":"SUM(C29:G29)","v":5}]
[]
["West"]
[null,"Argyll & Bute","-","-",2,4,1,{"$f":"SUM(C32:G32)","v":7}]
[null,"East Ayrshire",3,"-",12,2,2,19]
[null,"East Dunbartonshire","-",1,9,10,1,21]
[null,"East Renfrewshire","-","-","-",1,"-",1]
[null,"Glasgow City",3,3,66,28,34,134]
[null,"Inverclyde","-","-","-",1,4,5]
[null,"North Ayrshire","-","-",9,1,"-",10]
[null,"North Lanarkshire",1,"-",3,20,4,28]
[null,"Renfrewshire","-","-",8,2,3,13]
[null,"South Ayrshire","-","-",13,7,"-",20]
[null,"South Lanarkshire",1,"-",30,25,4,60]
[null,"West Dunbartonshire","-","-",6,2,2,10]
[null,"Dumfries & Galloway","-","-",9,1,2,12]
[]
["Force",null,{"$f":"SUM(C9:C44)","v":8},{"$f":"IF(SUM(D9:D44)=0,\"-\",SUM(D9:D44))","v":6},{"$f":"SUM(E9:E44)","v":227},{"$f":"SUM(F9:F44)","v":125},{"$f":"SUM(G9:G44)","v":77},{"$f":"SUM(H9:H44)","v":443}]
[]
[]
["12 - Due to multiple items being found in one search, the totals will not reflect the overall number of searches."]

{"sheet":"Searches by Ethnicity ","index":14,"n_rows":52,"n_cols":4,"rows_kept":52,"cut":false,"hidden":false,"merged":[]}
["Table 3.1"]
["Searches by Ethnicity/National Origin - Police Scotland"]
[{"$f":"'Number of Searches'!$A$3","v":"Period: April to June 2025"}]
[]
["Ethnicity/National Origin","Number of Searches","Positive Searches","Positive Rate (%)"]
[]
[null,"Number"]
["White Scottish",9371,2265,{"$f":"IFERROR(C8/B8*100,\"-\")","v":24.170312666737807}]
["White British Other",558,161,{"$f":"IFERROR(C9/B9*100,\"-\")","v":28.853046594982079}]
["White Irish",30,7,23.333333333333332]
["White Gypsy/Traveller",12,4,33.333333333333329]
["White Polish",79,31,39.24050632911392]
["White Other",202,73,36.138613861386141]
["Any Mixed Ethnic Group",159,35,22.012578616352201]
["Pakistani",186,61,32.795698924731184]
["Indian",39,14,35.897435897435898]
["Bangladeshi",2,1,50]
["Chinese",10,1,10]
["Asian Other",132,28,21.212121212121211]
["African, African Scottish, African British",182,45,24.725274725274726]
["African Other",99,22,22.222222222222221]
["Caribbean, Caribbean Scottish or Caribbean British",22,7,31.818181818181817]
["Black, Black Scottish or Black British",128,22,17.1875]
["Black Other","-","-","-"]
["Arab, Arab Scottish, Arab British",57,6,10.526315789473683]
["Other Ethnic Group",122,36,29.508196721311474]
["Not Provided/Unknown",186,44,23.655913978494624]
[]
[null,"Percentage"]
["White Scottish",{"$f":"IFERROR(B8/'Number of Searches'!$C$45*100,\"-\")","v":80.951969592259843},{"$f":"IFERROR(C8/'Number of Searches'!$D$45*100,\"-\")","v":79.112818721620684}]
["White British Other",{"$f":"IFERROR(B9/'Number of Searches'!$C$45*100,\"-\")","v":4.8203178991015889},{"$f":"IFERROR(C9/'Number of Searches'!$D$45*100,\"-\")","v":5.6234718826405867}]
["White Irish",{"$f":"IFERROR(B10/'Number of Searches'!$C$45*100,\"-\")","v":0.25915687629578438},{"$f":"IFERROR(C10/'Number of Searches'!$D$45*100,\"-\")","v":0.24449877750611246}]
["White Gypsy/Traveller",{"$f":"IFERROR(B11/'Number of Searches'!$C$45*100,\"-\")","v":0.10366275051831375},{"$f":"IFERROR(C11/'Number of Searches'!$D$45*100,\"-\")","v":0.13971358714634999}]
["White Polish",{"$f":"IFERROR(B12/'Number of Searches'!$C$45*100,\"-\")","v":0.68244644091223217},{"$f":"IFERROR(C12/'Number of Searches'!$D$45*100,\"-\")","v":1.0827803003842122}]
["White Other",{"$f":"IFERROR(B13/'Number of Searches'!$C$45*100,\"-\")","v":1.7449896337249482},{"$f":"IFERROR(C13/'Number of Searches'!$D$45*100,\"-\")","v":2.5497729654208872}]
["Any Mixed Ethnic Group",{"$f":"IFERROR(B14/'Number of Searches'!$C$45*100,\"-\")","v":1.3735314443676572},{"$f":"IFERROR(C14/'Number of Searches'!$D$45*100,\"-\")","v":1.2224938875305624}]
["Pakistani",{"$f":"IFERROR(B15/'Number of Searches'!$C$45*100,\"-\")","v":1.6067726330338632},{"$f":"IFERROR(C15/'Number of Searches'!$D$45*100,\"-\")","v":2.1306322039818375}]
["Indian",{"$f":"IFERROR(B16/'Number of Searches'!$C$45*100,\"-\")","v":0.33690393918451966},{"$f":"IFERROR(C16/'Number of Searches'!$D$45*100,\"-\")","v":0.48899755501222492}]
["Bangladeshi",{"$f":"IFERROR(B17/'Number of Searches'!$C$45*100,\"-\")","v":1.7277125086385625E-2},{"$f":"IFERROR(C17/'Number of Searches'!$D$45*100,\"-\")","v":3.4928396786587497E-2}]
["Chinese",{"$f":"IFERROR(B18/'Number of Searches'!$C$45*100,\"-\")","v":8.6385625431928126E-2},{"$f":"IFERROR(C18/'Number of Searches'!$D$45*100,\"-\")","v":3.4928396786587497E-2}]
["Asian Other",{"$f":"IFERROR(B19/'Number of Searches'!$C$45*100,\"-\")","v":1.1402902557014511},{"$f":"IFERROR(C19/'Number of Searches'!$D$45*100,\"-\")","v":0.97799511002444983}]
["African, African Scottish, African British",{"$f":"IFERROR(B20/'Number of Searches'!$C$45*100,\"-\")","v":1.5722183828610921},{"$f":"IFERROR(C20/'Number of Searches'!$D$45*100,\"-\")","v":1.5717778553964372}]
["African Other",{"$f":"IFERROR(B21/'Number of Searches'!$C$45*100,\"-\")","v":0.85521769177608842},{"$f":"IFERROR(C21/'Number of Searches'!$D$45*100,\"-\")","v":0.76842472930492489}]
["Caribbean, Caribbean Scottish or Caribbean British",{"$f":"IFERROR(B22/'Number of Searches'!$C$45*100,\"-\")","v":0.19004837595024188},{"$f":"IFERROR(C22/'Number of Searches'!$D$45*100,\"-\")","v":0.24449877750611246}]
["Black, Black Scottish or Black British",{"$f":"IFERROR(B23/'Number of Searches'!$C$45*100,\"-\")","v":1.10573600552868},{"$f":"IFERROR(C23/'Number of Searches'!$D$45*100,\"-\")","v":0.76842472930492489}]
["Black Other",{"$f":"IFERROR(B24/'Number of Searches'!$C$45*100,\"-\")","v":"-"},{"$f":"IFERROR(C24/'Number of Searches'!$D$45*100,\"-\")","v":"-"}]
["Arab, Arab Scottish, Arab British",{"$f":"IFERROR(B25/'Number of Searches'!$C$45*100,\"-\")","v":0.49239806496199034},{"$f":"IFERROR(C25/'Number of Searches'!$D$45*100,\"-\")","v":0.209570380719525}]
["Other Ethnic Group",{"$f":"IFERROR(B26/'Number of Searches'!$C$45*100,\"-\")","v":1.0539046302695232},{"$f":"IFERROR(C26/'Number of Searches'!$D$45*100,\"-\")","v":1.2574222843171499}]
["Not Provided/Unknown",{"$f":"IFERROR(B27/'Number of Searches'!$C$45*100,\"-\")","v":1.6067726330338632},{"$f":"IFERROR(C27/'Number of Searches'!$D$45*100,\"-\")","v":1.5368494586098498}]
[]
[]
["13 - Any anomilies in percentage changes are due to rounding up to the nearest decimal place."]

{"sheet":"Searches By Age and Gender","index":15,"n_rows":52,"n_cols":4,"rows_kept":52,"cut":false,"hidden":false,"merged":[]}
["Table 3.2"]
["Searches by Age and Gender - Police Scotland"]
[{"$f":"'Number of Searches'!$A$3","v":"Period: April to June 2025"}]
[]
["Demographic","Number of Searches","Positive Searches","Positive Rate (%)"]
[]
["Gender","Number"]
["Male",9708,2474,{"$f":"IFERROR(C8/B8*100,\"-\")","v":25.484136794396374}]
["Female",1868,389,{"$f":"IFERROR(C9/B9*100,\"-\")","v":20.824411134903638}]
["Not Provided","-","-","-"]
[]
["Age Group"]
["1 - 11 Years",17,"-",{"$f":"IFERROR(C13/B13*100,\"-\")","v":"-"}]
["12 - 15 Years",902,134,{"$f":"IFERROR(C14/B14*100,\"-\")","v":14.855875831485587}]
["16 - 17 Years",913,211,23.110624315443591]
["18 - 19 Years",864,248,28.703703703703702]
["20 - 24 Years",1545,483,31.262135922330099]
["25 - 29 Years",1224,352,28.75816993464052]
["30 - 39 Years",2615,677,25.889101338432123]
["40 - 49 Years",2108,485,23.007590132827325]
["50 - 59 Years",997,226,22.668004012036107]
["60 - 69 Years",240,38,15.833333333333332]
["70 Years and Over",46,6,13.043478260869565]
["Age Unknown",105,3,2.8571428571428572]
[]
[]
["Gender","Percentage"]
["Male",{"$f":"B8/'Number of Searches'!$C$45*100","v":83.86316516931582},{"$f":"IFERROR(C8/'Number of Searches'!$D$45*100,\"-\")","v":86.412853650017468}]
["Female",{"$f":"B9/'Number of Searches'!$C$45*100","v":16.136834830684172},{"$f":"IFERROR(C9/'Number of Searches'!$D$45*100,\"-\")","v":13.587146349982534}]
["Not Provided",{"$f":"IFERROR(B10/'Number of Searches'!$C$45*100,\"-\")","v":"-"},{"$f":"IFERROR(C10/'Number of Searches'!$D$45*100,\"-\")","v":"-"}]
[]
["Age Group"]
["1 - 11 Years",{"$f":"IFERROR(B13/'Number of Searches'!$C$45*100,\"-\")","v":0.14685556323427781},{"$f":"IFERROR(C13/'Number of Searches'!$D$45*100,\"-\")","v":"-"}]
["12 - 15 Years",{"$f":"IFERROR(B14/'Number of Searches'!$C$45*100,\"-\")","v":7.7919834139599171},{"$f":"IFERROR(C14/'Number of Searches'!$D$45*100,\"-\")","v":4.6804051694027242}]
["16 - 17 Years",{"$f":"IFERROR(B15/'Number of Searches'!$C$45*100,\"-\")","v":7.8870076019350384},{"$f":"IFERROR(C15/'Number of Searches'!$D$45*100,\"-\")","v":7.369891721969962}]
["18 - 19 Years",{"$f":"IFERROR(B16/'Number of Searches'!$C$45*100,\"-\")","v":7.4637180373185892},{"$f":"IFERROR(C16/'Number of Searches'!$D$45*100,\"-\")","v":8.662242403073698}]
["20 - 24 Years",{"$f":"IFERROR(B17/'Number of Searches'!$C$45*100,\"-\")","v":13.346579129232897},{"$f":"IFERROR(C17/'Number of Searches'!$D$45*100,\"-\")","v":16.87041564792176}]
["25 - 29 Years",{"$f":"IFERROR(B18/'Number of Searches'!$C$45*100,\"-\")","v":10.573600552868003},{"$f":"IFERROR(C18/'Number of Searches'!$D$45*100,\"-\")","v":12.294795668878798}]
["30 - 39 Years",{"$f":"IFERROR(B19/'Number of Searches'!$C$45*100,\"-\")","v":22.589841050449206},{"$f":"IFERROR(C19/'Number of Searches'!$D$45*100,\"-\")","v":23.646524624519735}]
["40 - 49 Years",{"$f":"IFERROR(B20/'Number of Searches'!$C$45*100,\"-\")","v":18.210089841050451},{"$f":"IFERROR(C20/'Number of Searches'!$D$45*100,\"-\")","v":16.940272441494937}]
["50 - 59 Years",{"$f":"IFERROR(B21/'Number of Searches'!$C$45*100,\"-\")","v":8.6126468555632343},{"$f":"IFERROR(C21/'Number of Searches'!$D$45*100,\"-\")","v":7.8938176737687744}]
["60 - 69 Years",{"$f":"IFERROR(B22/'Number of Searches'!$C$45*100,\"-\")","v":2.073255010366275},{"$f":"IFERROR(C22/'Number of Searches'!$D$45*100,\"-\")","v":1.327279077890325}]
["70 Years and Over",{"$f":"IFERROR(B23/'Number of Searches'!$C$45*100,\"-\")","v":0.39737387698686943},{"$f":"IFERROR(C23/'Number of Searches'!$D$45*100,\"-\")","v":0.209570380719525}]
["Age Unknown",{"$f":"IFERROR(B24/'Number of Searches'!$C$45*100,\"-\")","v":0.90704906703524524},{"$f":"IFERROR(C24/'Number of Searches'!$D$45*100,\"-\")","v":0.1047851903597625}]
[]
[]
["14 - All 17 searches of persons in the age group ‘1-11’ have been reviewed by the NSSU and met the expected"]
["criteria.   "]
["15 - Searches recorded in the age group 'Age Unknown' refer to records where the nominal details were withheld "]
["or 'Age Unknown' boxes have been ticked.  Officers are required to make an estimate whether the persons "]
["searched was under the age of 18.  Of the 105 searches 81 were for persons estimated by reporting officers to be "]
["18 years of age or over and 24 was for persons estimated to be under the age of 18."]

{"sheet":"S60 Auths","index":16,"n_rows":7,"n_cols":5,"rows_kept":7,"cut":false,"hidden":false,"merged":[]}
["Table 4.1"]
["Use of powers under Section 60 Criminal Justice and Public Order Act 1994 - Police Scotland"]
[{"$f":"'Number of Searches'!$A$3","v":"Period: April to June 2025"}]
[]
["A total of 0 stop searches have been carried out under Section 60 Criminal Justice and Public Order Act 1994 authorisations recorded as detailed in the table below:"]
[]
["Authorisation Date","Local Authority Area","Authorising Officer Rank","Authorisation Type","Number of Searches"]